Cogmind - Beta 12 @@@ ROGUE MODE // 2023.04.13 @ 22:23:55 Player: Decinym Result: Destroyed by D-53 Grenadier with Mini Grenade Launcher Performance ------------- Evolutions (1) 500 Regions Visited (4) 800 Robots Destroyed (52) 260 Value Destroyed (1344) 1344 Prototype IDs (1) 20 Alien Tech Used (0) 0 Bonus (51) 51 TOTAL SCORE: 2975 Bonus ------- High Alert Combat Kills 51 Cogmind --------- Core Integrity 0/400 Matter 168/300 Energy 100/100 System Corruption 0% Temperature Cool (0) Movement Core (200) Ox3 Location -9/Mines Parts ------- > --- POWER (1) -------- (None) > --- PROPULSION (3) --- (None) > --- UTILITY (3) ------ Medium Storage Unit > --- WEAPON (2) ------- Light Assault Rifle Light Assault Rifle > --- INVENTORY (10) --- Ion Engine Wheel Huge Storage Unit Experimental Sensor Array Light Armor Plating Rocket Launcher Peak State ------------ > --- POWER ------------ Light Ion Engine > --- PROPULSION ------- Aluminum Leg Aluminum Leg Aluminum Leg > --- UTILITY ---------- Improved Heat Sink Medium Storage Unit Experimental Sensor Array > --- WEAPON ----------- Small Laser Particle Gun > --- INVENTORY -------- Light Treads Light Treads Wheel Light Assault Rifle Rocket Launcher [Rating: 20] Favorites ----------- Power Light Ion Engine Engine Light Ion Engine Propulsion Aluminum Leg Treads Light Treads Leg Aluminum Leg Utility Medium Storage Unit Device Improved Heat Sink Storage Medium Storage Unit Protection Light Armor Plating Weapon Small Laser Energy Gun Small Laser Ballistic Gun Heavy Assault Rifle Launcher Rocket Launcher Build | -11 -10 -10 -9 -9 ------- Run | Jun Mat Min Mat Min Slots Evolved 2 | . . . 2 . Power . | . . . . . Propulsion 1 | . . . 1 . Utility 1 | . . . 1 . Weapon . | . . . . . Parts Attached 44 | . 4 12 21 7 Power 3 | . . 1 1 1 Engine 3 | . . 1 1 1 Core . | . . . . . Reactor . | . . . . . Propulsion 14 | . . 5 8 1 Treads 4 | . . . 3 1 Leg 10 | . . 5 5 . Wheel . | . . . . . Hover . | . . . . . Flight . | . . . . . Utility 9 | . 2 2 4 1 Device 3 | . . 2 1 . Storage 1 | . 1 . . . Processor . | . . . . . Hackware . | . . . . . Protection 5 | . 1 . 3 1 Artifact . | . . . . . Weapon 18 | . 2 4 8 4 Energy Gun 6 | . 2 3 1 . Energy Cannon . | . . . . . Ballistic Gun 9 | . . 1 5 3 Ballistic Cannon . | . . . . . Launcher 3 | . . . 2 1 Special Weapon . | . . . . . Impact Weapon . | . . . . . Slashing Weapon . | . . . . . Piercing Weapon . | . . . . . Special Melee Weapon . | . . . . . Unidentified Prototypes 1 | . . . 1 . Parts Lost 20 | . . 4 5 11 Power 4 | . . 1 1 2 Propulsion 8 | . . 2 2 4 Utility 5 | . . . 2 3 Weapon 3 | . . 1 . 2 Highest Loss Streak 10 | . . 1 2 10 To Critical Strikes 1 | . . . 1 . Average Slot Usage (%) 95 | . 91 99 93 96 Engine 12 | . 14 14 10 10 Treads 8 | . . . 9 31 Leg 21 | . 28 27 22 . Device 4 | . . 6 7 . Storage 12 | . 14 14 11 11 Protection 10 | . 6 6 10 20 Energy Gun 17 | . 28 27 11 . Ballistic Gun 7 | . . . 9 22 Naked Turns . | . . . . . Heaviest Build 29 | 12 20 19 29 27 Greatest Support 60 | 20 20 20 60 60 Greatest Overweight (x) 1 | . . 1 1 . Average Overweight (x) . | . . . . . Largest Inventory Capacity 10 | . 10 10 10 10 Average Capacity 9 | . 9 10 10 10 Most Carried 10 | . 10 10 10 10 Average Carried 8 | . 7 9 7 9 Final Capacity 10 | 8 10 10 10 10 Final Carried 10 | 6 10 10 10 6 Class Distribution -------------------- 70% | Scavenger-Mutant 29% | Mutant Dominant Class ---------------- Mutant | -10/Materials Scavenger-Mutant | -10/Mines Scavenger-Mutant | -9/Materials Scavenger-Mutant | -9/Mines Resources | -11 -10 -10 -9 -9 ----------- Run | Jun Mat Min Mat Min Matter Collected 814 | 182 63 134 400 35 Remotely . | . . . . . Salvage Created 1758 | . 314 550 714 180 Parts 97 | . 27 23 43 4 Haulers Intercepted 2 | . . . 2 . Recyclers Shooed 1 | . . . 1 . Parts Field Recycled . | . . . . . Retrieved Matter . | . . . . . Parts Self-Destructed . | . . . . . Prevented . | . . . . . Kills | -11 -10 -10 -9 -9 ------- Run | Jun Mat Min Mat Min Combat Hostiles Destroyed 54 | . 10 12 22 10 Guns 45 | . 10 12 16 7 AOE 9 | . . . 6 3 Classes Destroyed 8 | . 3 1 2 2 Hauler 2 | . . . 2 . Recycler 1 | . . 1 . . Watcher 2 | . 2 . . . Swarmer 18 | . 6 3 9 . Grunt 25 | . 4 9 10 2 Brawler 1 | . . . . 1 Sentry 3 | . . . 3 . Assembled 7 | . . . . 7 Best Kill Streak 7 | . 5 3 4 7 Combat Bots Only 7 | . 4 3 4 7 Max Kills in Single Turn 2 | . 2 2 2 2 Gunslinging 1 | . 1 1 . 1 Exploded 2 | . . . 2 2 Melee . | . . . . . Uniques/NPCs Destroyed . | . . . . . Combat | -11 -10 -10 -9 -9 -------- Run | Jun Mat Min Mat Min Damage Taken 3332 | . 232 737 799 1564 Core 616 | . 46 161 101 308 Absorbed by Shields . | . . . . . Regen/Repaired (Parts) 48 | . . . 48 . Core Remaining (%) 58 | 100 . 17 . . Volleys Fired 178 | . 24 55 72 27 Largest 2 | . 2 2 2 2 Hottest 105 | . 80 105 105 46 Shots Fired 346 | . 48 106 140 52 Gun 340 | . 48 106 136 50 Cannon . | . . . . . Launcher 6 | . . . 4 2 Special . | . . . . . Kinetic 120 | . . 10 60 50 Thermal 172 | . . 96 76 . Explosive 6 | . . . 4 2 Electromagnetic 48 | . 48 . . . Robot Hit Streak 15 | . 5 11 11 15 Robot Miss Streak 6 | . 4 5 6 4 Penetration Max . | . . . . . Secondary Targets 10 | . 3 3 1 3 Max Gunslinging Chain 1 | . 1 1 1 1 Shots Hit Robots 207 | . 26 65 85 31 Core Hits 97 | . 15 29 34 19 Critical Kills . | . . . . . Critical Parts Destroyed . | . . . . . Critical Strikes 4 | . 1 1 2 . Burn 3 | . . 1 2 . Corrupt 1 | . 1 . . . Melee Attacks . | . . . . . Impact . | . . . . . Slashing . | . . . . . Piercing . | . . . . . Sneak Attacks . | . . . . . Combat Hostiles . | . . . . . Follow-up Attacks . | . . . . . Damage Inflicted 3560 | . 488 745 1608 719 Guns 2755 | . 380 738 1184 453 Cannons . | . . . . . Explosions 772 | . 108 . 398 266 Melee . | . . . . . Ramming 33 | . . 7 26 . Kinetic 1082 | . . 78 551 453 Thermal 1401 | . 108 660 633 . Explosive 664 | . . . 398 266 Electromagnetic 380 | . 380 . . . Impact . | . . . . . Slashing . | . . . . . Piercing . | . . . . . Highest Corruption 2 | . 2 2 . . Average Corruption 2 | . 2 2 . . Corruption Purged . | . . . . . Corruption Blocked . | . . . . . Effects 16 | . 4 12 . . Message Errors 5 | . . 5 . . Matter Fused 3 | . 1 2 . . Heat Flow Errors 2 | . . 2 . . Data Loss (minor) 2 | . . 2 . . Data Loss (major) 2 | . 2 . . . Misfires 1 | . . 1 . . Alerts 1 | . 1 . . . Overload Shots . | . . . . . Overflow Damage 58 | . 2 . 56 . Projectiles . | . . . . . Explosions 58 | . 2 . 56 . Melee . | . . . . . Knockbacks . | . . . . . Impact . | . . . . . Kinetic . | . . . . . Secondary . | . . . . . Self-Inflicted Damage 44 | . . . . 44 Shots 1 | . . . . 1 Rammed . | . . . . . Targets Rammed 3 | . . 1 2 . Kicked 3 | . . 1 2 . Crushed . | . . . . . Highest Temperature 501 | . 252 501 129 45 Average Temperature 90 | . 78 135 23 17 Received Heat Transfer 882 | . 66 414 240 162 Effects 5 | . 2 3 . . Interference 4 | . 2 2 . . Short Circuit 1 | . . 1 . . Siege Activations . | . . . . . Robots Corrupted . | . . . . . Combat Hostiles . | . . . . . Parts Fried 2 | . 2 . . . Impact Corruptions . | . . . . . Robots Melted . | . . . . . Combat Hostiles . | . . . . . Parts Melted 8 | . . 2 6 . Heat Transferred 3599 | . 200 1679 1720 . Parts Sabotaged . | . . . . . Parts Stolen . | . . . . . Parts Stripped . | . . . . . Power Chain Reactions 2 | . 2 . . . Missiles Intercepted . | . . . . . Alert | -11 -10 -10 -9 -9 ------- Run | Jun Mat Min Mat Min Peak Influence 531 | . 308 230 531 241 Initial 148 | . . 120 19 148 Average 200 | . 134 139 307 188 Maximum Alert Level 2 | . 1 1 2 1 Low Security (%) 40 | . 75 57 20 12 Level 1 48 | . 24 42 44 87 Level 2 11 | . . . 35 . Level 3 . | . . . . . Level 4 . | . . . . . Level 5 . | . . . . . High Security . | . . . . . Max Security . | . . . . . Squads Dispatched 4 | . 1 . 3 . Investigation 3 | . 1 . 2 . Extermination . | . . . . . Reinforcement 1 | . . . 1 . Assault . | . . . . . Garrison . | . . . . . Intercept . | . . . . . Searches Triggered . | . . . . . Construction Impeded . | . . . . . Haulers Reinforced . | . . . . . Active Scanning Responses . | . . . . . Cargo Convoy Interrupts . | . . . . . Stealth | -11 -10 -10 -9 -9 --------- Run | Jun Mat Min Mat Min Distress Signals 2 | . 2 . . . Communications Jammed . | . . . . . Distress Signals . | . . . . . Times Spotted 78 | . 15 13 32 18 Peak Tracking Total 9 | . 4 3 8 9 Tactical Retreats 2 | . . . 1 1 Traps | -11 -10 -10 -9 -9 ------- Run | Jun Mat Min Mat Min Traps Triggered 1 | . 1 . . . Indirectly . | . . . . . Trap Hack Attempts . | . . . . . Triggered . | . . . . . Disarmed . | . . . . . Reprogrammed . | . . . . . Reused . | . . . . . Traps Extracted . | . . . . . Installed . | . . . . . Triggered . | . . . . . Machines | -11 -10 -10 -9 -9 ---------- Run | Jun Mat Min Mat Min Machines Disabled 1 | . 1 . . . Max in Single Turn 1 | . 1 . . . Machines Repaired . | . . . . . Machines Sabotaged . | . . . . . Overloaded Fab Kills . | . . . . . Hacking | -11 -10 -10 -9 -9 --------- Run | Jun Mat Min Mat Min Machines Accessed 8 | . 2 . 6 . Terminals 7 | . 2 . 5 . Fabricators . | . . . . . Repair Stations 1 | . . . 1 . Recycling Units . | . . . . . Scanalyzers . | . . . . . Garrison Access . | . . . . . Total Hacks 20 | . 4 . 16 . Successful 7 | . 2 . 5 . Failed 13 | . 2 . 11 . Catastrophic 6 | . 1 . 5 . Database Lockouts . | . . . . . Manual 7 | . . . 7 . Terminals 16 | . 4 . 12 . Fabricators . | . . . . . Repair Stations 4 | . . . 4 . Recycling Units . | . . . . . Scanalyzers . | . . . . . Garrison Access . | . . . . . Terminal Hacks 3 | . 2 . 1 . Robot Analysis 1 | . 1 . . . Branch Access Points 1 | . 1 . . . Zone Layout 1 | . . . 1 . Fabricator Hacks . | . . . . . Repair Station Hacks 3 | . . . 3 . Scan Component 2 | . . . 2 . Repair 1 | . . . 1 . Recycling Unit Hacks . | . . . . . Scanalyzer . | . . . . . Garrison Access Hacks . | . . . . . Unauthorized Hacks 1 | . . . 1 . Terminals 1 | . . . 1 . Disrupt 1 | . . . 1 . Fabricators . | . . . . . Repair Stations . | . . . . . Recycling Units . | . . . . . Scanalyzers . | . . . . . Garrison Access . | . . . . . Data Cores Recovered . | . . . . . Used . | . . . . . Hacking Detections 7 | . 1 . 6 . Full Trace Events 3 | . 1 . 2 . Feedback Events . | . . . . . Feedback Blocked . | . . . . . Robot Schematics Acquired . | . . . . . Robots Built . | . . . . . Authchips . | . . . . . Time . | . . . . . Total Robot Build Rating . | . . . . . Part Schematics Acquired . | . . . . . Parts Built . | . . . . . Authchips . | . . . . . Time . | . . . . . Total Part Build Rating . | . . . . . Parts Repaired 1 | . . . 1 . Time 32 | . . . 32 . Parts Recycled . | . . . . . Recycled Matter . | . . . . . Retrieved Matter . | . . . . . Retrieved Components . | . . . . . Parts Scanalyzed . | . . . . . Part Schematics Acquired . | . . . . . Parts Damaged . | . . . . . Bothacking | -11 -10 -10 -9 -9 ------------ Run | Jun Mat Min Mat Min Used RIF Installer . | . . . . . Robots Hacked . | . . . . . Non-combat . | . . . . . Combat . | . . . . . Robot Hacks Applied . | . . . . . Relay Couplers Released . | . . . . . Fabnet Peak Effective % . | . . . . . Robots Rewired . | . . . . . Allies Hacked . | . . . . . Hacks Repelled . | . . . . . Allies | -11 -10 -10 -9 -9 -------- Run | Jun Mat Min Mat Min Total Allies . | . . . . . Largest Group . | . . . . . Highest-Rated Group . | . . . . . Highest-Rated Ally . | . . . . . Total Orders . | . . . . . Ally Attacks . | . . . . . Total Damage . | . . . . . Kills . | . . . . . Allies Corrupted . | . . . . . Allies Melted . | . . . . . Intel | -11 -10 -10 -9 -9 ------- Run | Jun Mat Min Mat Min Robot Analysis Total 1 | . 1 . . . Derelict Logs Recovered 2 | . . 1 . 1 Drone Launches . | . . . . . Drone Recoveries . | . . . . . Exploration | -11 -10 -10 -9 -9 ------------- Run | Jun Mat Min Mat Min Turns Passed 2603 | . 355 984 819 445 Spaces Moved 1499 | 1 219 659 396 224 Core . | . . . . . Treads 344 | . . . 120 224 Legs 1155 | 1 219 659 276 . Wheels . | . . . . . Hover . | . . . . . Flight . | . . . . . Fastest Speed 120 | 120 120 120 120 160 Average Speed 130 | 120 120 120 134 160 Slowest Speed 190 | 120 120 190 190 160 Overloaded Moves . | . . . . . Propulsion Burnouts . | . . . . . Robots Hopped . | . . . . . Cave-ins Triggered . | . . . . . Exploration Rate (%) 46 | 2 44 96 44 44 Regions Visited 4 Branch Regions 2 Pre-discovered Areas . | . . . . . Known Exits Taken 1 | . 1 . . . Unknown Exits Taken 3 | 1 . 1 1 . Scrap Searched 3 | . . 2 . 1 Spaces Dug . | . . . . . Terrain Destroyed 55 | . 4 . 31 20 Melee . | . . . . . Projectile . | . . . . . AOE 55 | . 4 . 31 20 Terrain Rammed . | . . . . . Walls Destroyed . | . . . . . Machines Disabled . | . . . . . Actions | -11 -10 -10 -9 -9 --------- Run | Jun Mat Min Mat Min Total 1812 | . 263 745 543 261 Wait 52 | . 6 11 35 . Move 1495 | . 218 658 395 224 Hop . | . . . . . Pick Up 16 | . 6 2 6 2 Fast Attach 17 | . 4 3 10 . Attach 13 | . . 3 5 5 Detach 3 | . . . 3 . Swap 14 | . . 6 6 2 Drop 21 | . 5 6 9 1 Fire 178 | . 24 55 72 27 Melee . | . . . . . Ram . | . . . . . Kick 3 | . . 1 2 . Crush . | . . . . . Escape Stasis . | . . . . . Rewire . | . . . . . Trap . | . . . . . Miscellaneous . | . . . . . Route ------- -11/Junkyard -10/Materials -10/Mines (discovered 2 exits: *Mat x2) -9/Materials (discovered 2 exits: [*Mat] / [*Min]) -9/Mines (discovered 2 exits: [*Mat] / [*Zio]) History --------- Turn | Location | Event 1 | -11/Junkyard | Discovered new exit (range 0) 1 | -11/Junkyard | Entered Materials 41 | -10/Materials | Identified exit to Mines 315 | -10/Materials | Build established: Mutant 356 | -10/Materials | Entered Mines 414 | -10/Mines | Received a Rocket Launcher from a helpful Derelict 613 | -10/Mines | Discovered new exit (range 3) 638 | -10/Mines | Found a damaged Exp. Sensor Array with a note attached 641 | -10/Mines | Found Prototype Device 845 | -10/Mines | Core integrity fell below 50% 851 | -10/Mines | Learned Materials security intel 934 | -10/Mines | Discovered new exit (range 11) 1108 | -10/Mines | Core integrity fell below 20% 1172 | -10/Mines | Build established: Scavenger-Mutant 1340 | -10/Mines | Entered Materials 1340 | -9/Materials | Evolved 2 slots: Propulsion x1, Utility x1 1571 | -9/Materials | Identified Exp. Sensor Array 1609 | -9/Materials | Discovered new exit (range 15) 1832 | -9/Materials | Repaired Hvy. Assault Rifle 1967 | -9/Materials | Discovered new exit (range 13) 2159 | -9/Materials | Entered Mines 2225 | -9/Mines | A Derelict revealed a hidden shortcut to a safe place 2242 | -9/Mines | Learned Materials stockpile data 2332 | -9/Mines | Discovered new exit (range 10) 2517 | -9/Mines | Assembled infested the area 2522 | -9/Mines | Assisted by a Guerilla fighting off Assembled 2578 | -9/Mines | Core integrity fell below 50% 2592 | -9/Mines | Destroyed 7 combat bots 2600 | -9/Mines | Core integrity fell below 20% 2604 | -9/Mines | Destroyed by D-53 Grenadier with Mini Grenade Launcher Last Messages --------------- 02569_ Core Extractor disabled. 02571_ as-88854 destroyed. 02571_ as-07348 destroyed. 02571_ as-52135 destroyed. 02571_ Switching to secondary target: as-18996. 02573_ Lgt. Treads destroyed. 02573_ as-18996 destroyed. 02574_ The unstable cave ceiling collapses. 02575_ Lgt. Armor Plating destroyed. 02575_ Lgt. Treads destroyed. 02579_ Hrd. Light Armor Plating destroyed. 02580_ D-53 Grenadier destroyed. 02581_ The unstable cave ceiling collapses. 02583_ Lgt. Treads destroyed. 02584_ The unstable cave ceiling collapses. 02585_ Hvy. Assault Rifle destroyed. 02588_ The unstable cave ceiling collapses. 02589_ Ion Engine destroyed. 02591_ Lgt. Treads destroyed. 02593_ Hvy. Assault Rifle destroyed. Map ----- +----------------------------------------------------+ | ##??????????????????????????????????????????????? | | ##?????????????????????????????????????????????? | | ##????????????????????????????????????????????? | | ##???????????????????????????????????????????? | | ## ##??????????????????????????????????????????? | | ### #??????????????????????????????????????????? | | ??## #??????????????????????????????????????????? | | ???#> #??????????????????????????????????????????? | | ???# #???????????????????????????????#??????????? | | ?### #?????????????????????????????? ???????????? | | ## #??????????????????????????### ????????????? | | #??????????????####??????? ?????????????? | | ^ #?????????????## ##?????? ??????????????? | | # # ##########????# #????? "#??????????????? | | #^ % #???## #???? "#???????????????? | | # ^ %% ##### #??? #????????????????? | | ## ####### "" #### ##???#???????????? | | ^ #?????# % ! " ### ???????????? | | #### ##?????# d%= " ??????? | | ???###??????#### #*a a #### "???????? | | ?????????????????# ##### "???????? | | #????????????????# % # a "???????? | | #????????????????# % ## ???????? | | #???????????????### #???? ????????? | | #???????????????# #???????#????????? | | ???????????????????# @ #??????????????????? | | ???????????????????## #??????????????????? | | ????????????????????# #??????????????????? | | ????????????????????# ##??????????????????? | | ????????????????????### ##???????????????????? | | ??????????????????????#######????????????????????? | | ?????????????????????????????????????????????????? | | ?????????????????????????????????????????????????? | | ?????????????????????????????????????????????????? | | ?????????????????????????????????????????????????? | | ?????????????????????????????????????????????????? | | ?????????????????????????????????????????????????? | | | | | | | | | | | | | | | | | | | | | | | | | | | +----------------------------------------------------+ Best States ------------- Heat Dissipation 42 Energy Generation 12 Energy Capacity 265 Matter Stores 300 Matter Capacity 300 Sight Range 16 Terrain Scan Density 10 Armor Coverage 300 Evasion (%) 55 Recoil Reduction 3 Item Schematics ----------------- None Robot Schematics ------------------ None Fabricated ------------ Nothing Alien Tech Used ----------------- None Achievements -------------- None Challenges ------------ None Game ------ Seed CommBlastScythe Manual? 0 Play Time 00:20:16 Cumulative 300.0 hours Start 2023.04.13 @ 21:43:45 End 2023.04.13 @ 22:23:55 Sessions 1 Manual Loads 0 Difficulty Rogue Special Mode None Game No. 337 Rogue 337 Adventurer 0 Explorer 0 Win Type - Total 27 Types 16/3/2/1/2/0/3/0/0 Lore% 82 Gallery% 78 Achievement% 82 Wizard Run 0 Options --------- ASCII 0 Keyboard 0 Movement Mouse Keybinds 0 Fullscreen 2 Font 24/Smallcaps Map View 76x50 Tactical HUD 1 Map Filters NONE Filters NONE Steam 1 RUN: f3dd4b29-b23a-41b2-b5cf-830b59225f49